fUSD/lending_fUSD_20260415
["ID","MTS","AMOUNT","RATE_DAILY","PERIOD"]
[420523377,1776238232116,-413.7886853,0.00011962,2]
[420523378,1776238232134,-462.28,0.00011962,2]
[420523380,1776238232148,-703.72702952,0.00011962,2]
[420523402,1776238237603,-357.39631745,0.00011962,2]
[420523403,1776238237633,-11771.66611298,0.00011962,2]
[420523404,1776238237644,-500.0,0.00012108,2]
[420523405,1776238237671,-1248.81,0.0001213,2]
[420523406,1776238237681,-200.0,0.00012137,2]
[420523407,1776238237692,-150.0,0.00012165,2]
[420523408,1776238237708,-166.52,0.00012268,2]
[420523409,1776238237721,-200.0,0.000125,2]
[420523410,1776238237733,-287.63063866,0.000125,2]
[420523411,1776238237752,-152.05692923,0.000125,2]
[420523412,1776238237765,-156.0,0.000125,3]
[420523413,1776238237778,-151.0,0.0001251,2]
[420523414,1776238237796,-500.0,0.0001251,2]
[420523415,1776238237810,-200.0,0.0001251,2]
[420523416,1776238237821,-151.0,0.0001251,2]
[420523417,1776238237840,-500.0,0.0001251,2]
[420523418,1776238237854,-151.0,0.0001251,2]
[420523419,1776238237865,-500.0,0.0001251,2]
[420523420,1776238237884,-151.0,0.0001251,2]
[420523421,1776238237896,-500.0,0.0001251,2]
[420523422,1776238237909,-151.0,0.0001251,2]
[420523423,1776238237927,-500.0,0.0001251,2]
[420523424,1776238237943,-151.0,0.0001251,2]
[420523425,1776238237974,-188.22670162,0.0001251,2]
[420523426,1776238237996,-500.0,0.0001251,2]
[420523427,1776238238013,-151.0,0.0001251,2]
[420523428,1776238238032,-500.0,0.0001251,2]
[420523429,1776238238061,-151.0,0.0001251,2]
[420523430,1776238238087,-500.0,0.0001251,2]
[420523431,1776238238102,-151.0,0.0001251,2]
[420523432,1776238238124,-500.0,0.0001251,2]
[420523433,1776238238138,-151.0,0.0001251,2]
[420523434,1776238238159,-500.0,0.0001251,2]
[420523435,1776238238173,-151.0,0.0001251,2]
[420523436,1776238238190,-500.0,0.0001251,2]
[420523437,1776238238212,-500.0,0.0001251,2]
[420523438,1776238238230,-500.0,0.0001251,2]
[420523439,1776238238257,-500.0,0.0001251,2]
[420523440,1776238238279,-500.0,0.0001251,2]
[420523441,1776238238296,-500.0,0.0001251,2]
[420523442,1776238238322,-500.0,0.0001251,2]
[420523443,1776238238337,-514.11035323,0.0001251,2]
[420523444,1776238238367,-500.0,0.0001251,2]
[420523445,1776238238380,-151.0,0.0001251,2]
[420523446,1776238238405,-500.0,0.0001251,2]
[420523447,1776238238416,-500.0,0.00012549,2]
[420523448,1776238238438,-414.03,0.00012559,2]
[420523449,1776238238453,-150.0,0.000126,2]
[420523450,1776238238463,-6531.71,0.00012603,2]
[420523451,1776238238488,-154.7246712,0.00012622,2]
[420523452,1776238238498,-2847.9,0.00012625,2]
[420523453,1776238238507,-200.0,0.00012625,2]
[420523454,1776238238523,-1000.0,0.0001263,2]
[420523455,1776238238537,-1000.0,0.00012636,2]
[420523456,1776238238546,-1000.0,0.00012649,2]
[420523457,1776238238555,-7515.37317773,0.0001265,2]
[420523458,1776238238569,-1320.04927132,0.0001265,2]
[420523459,1776238238584,-500.0,0.00012724,2]
[420523460,1776238238593,-500.0,0.00012724,3]
[420523461,1776238238603,-500.0,0.00012724,4]
[420523462,1776238238613,-500.0,0.00012724,5]
[420523463,1776238238628,-1441.66651889,0.00012737,2]
[420523464,1776238238637,-200.0,0.00012751,2]
[420523465,1776238238646,-166.52,0.00012774,2]
[420523466,1776238238657,-167.38,0.00012791,2]
[420523467,1776238238671,-6152.62250173,0.00012825,2]
[420523468,1776238238681,-5000.0,0.00012825,2]
[420523469,1776238238690,-5000.0,0.00012825,2]
[420523470,1776238238701,-5000.0,0.00012825,2]
[420523471,1776238238716,-5000.0,0.00012825,2]
[420523472,1776238238726,-414.03,0.00012833,2]
[420523473,1776238238737,-1000.0,0.00012847,2]
[420523474,1776238238751,-1000.0,0.00012879,2]
[420523475,1776238238761,-9999.99,0.00012893,2]
[420523476,1776238238771,-9999.99,0.00012893,2]
[420523477,1776238238781,-9999.99,0.00012893,2]
[420523478,1776238238795,-24999.99,0.00012893,2]
[420523479,1776238238808,-999.99,0.00012893,2]
[420523480,1776238238819,-150.99,0.00012893,2]
[420523481,1776238238832,-2000.0,0.00012903,2]
[420523482,1776238238846,-202.19,0.00012926,2]
[420523483,1776238238861,-1000.0,0.00012929,2]
[420523484,1776238238875,-1000.0,0.00012965,2]
[420523485,1776238238886,-250.0,0.00013,2]
[420523486,1776238238902,-2500.0,0.00013014,2]
[420523487,1776238238915,-200.0,0.00013058,2]
[420523488,1776238238925,-3342.4411,0.00013065,2]
[420523489,1776238238940,-1000.0,0.00013065,2]
[420523490,1776238238952,-414.03,0.00013107,2]
[420523491,1776238238965,-30000.0,0.00013114,2]
[420523492,1776238238979,-1000.0,0.00013134,2]
[420523493,1776238238989,-150.0,0.00013141,2]
[420523494,1776238239002,-181.08010149,0.00013171,2]
[420523495,1776238239012,-1000.0,0.00013207,2]
[420523496,1776238239025,-156.0,0.00013231,3]
[420523497,1776238239042,-166.52,0.0001328,2]
[420523498,1776238239054,-600.0,0.00013319,2]
[420523499,1776238239064,-500.0,0.00013376,2]
[420523500,1776238239082,-500.0,0.00013376,2]
[420523501,1776238239094,-500.0,0.00013376,2]
[420523502,1776238239105,-500.0,0.00013376,2]
[420523503,1776238239129,-500.0,0.00013376,2]
[420523504,1776238239141,-205.36009695,0.00013376,2]
[420523505,1776238239164,-500.0,0.00013376,2]
[420523506,1776238239182,-500.0,0.00013376,2]
[420523508,1776238239199,-500.0,0.00013376,2]
[420523509,1776238239226,-578.20924308,0.00013377,2]
[420523510,1776238239244,-1428.38747117,0.00013377,2]
[420523511,1776238239270,-721.12765535,0.00013377,2]
[420523512,1776238239288,-209.40437684,0.00013377,2]
[420523513,1776238239315,-151.0,0.00013377,2]
[420523514,1776238239334,-743.50770149,0.00013377,2]
[420523515,1776238239354,-500.0,0.00013377,2]
[420523516,1776238239367,-500.0,0.00013377,2]
[420523517,1776238239381,-500.0,0.00013377,2]
[420523518,1776238239398,-174.61919141,0.00013377,2]
[420523519,1776238239417,-500.0,0.00013377,2]
[420523520,1776238239429,-500.0,0.00013377,2]
[420523521,1776238239443,-500.0,0.00013377,2]
[420523522,1776238239458,-500.0,0.00013377,2]
[420523523,1776238239469,-500.0,0.00013377,2]
[420523524,1776238239481,-500.0,0.00013377,2]
[420523525,1776238239492,-500.0,0.00013377,2]
[420523526,1776238239507,-611.49090799,0.00013377,2]
[420523527,1776238239519,-693.3919763,0.00013377,2]
[420523528,1776238239535,-284.03883449,0.00013377,2]
[420523529,1776238239547,-235.75327194,0.00013377,2]
[420523530,1776238239559,-244.476143,0.00013377,2]
[420523531,1776238239574,-253.52176029,0.00013377,2]
[420523532,1776238239585,-262.90206542,0.00013377,2]
[420523534,1776238239594,-272.62944185,0.00013377,2]
[420523535,1776238239610,-282.71673119,0.00013377,2]
[420523537,1776238239623,-293.17725025,0.00013377,2]
[420523538,1776238239637,-304.02480851,0.00013377,2]
[420523539,1776238239648,-230.79852755,0.00013377,2]
[420523540,1776238239662,-414.03,0.00013381,2]
[420523541,1776238239676,-3240.0,0.00013425,2]
[420523542,1776238239688,-500.0,0.00013452,2]
[420523543,1776238239698,-339.94571927,0.0001346,2]
[420523544,1776238239711,-508.0,0.000135,2]
[420523545,1776238239739,-500.0,0.00013501,2]
[420523546,1776238239749,-500.0,0.00013501,2]
[420523547,1776238239761,-500.0,0.00013501,2]
[420523548,1776238239775,-500.0,0.00013501,2]
[420523549,1776238239784,-500.0,0.00013501,2]
[420523550,1776238239794,-500.0,0.00013501,2]
[420523551,1776238239806,-500.0,0.00013501,2]
[420523552,1776238239823,-500.0,0.00013501,2]
[420523553,1776238239838,-500.0,0.00013501,2]
[420523554,1776238239848,-251.77383387,0.00013501,2]
[420523555,1776238239857,-234.462165,0.00013552,2]
[420523556,1776238239867,-384.37808,0.00013552,2]
[420523557,1776238239876,-466.112727,0.00013559,2]
[420523558,1776238239885,-160.0,0.00013559,2]
[420523559,1776238239895,-832.44444,0.00013559,2]
[420523560,1776238239905,-1504.88888,0.00013559,2]
[420523561,1776238239914,-160.0,0.00013559,2]
[420523562,1776238239923,-237.862283,0.00013559,2]
[420523563,1776238239932,-315.724566,0.00013559,2]
[420523564,1776238239941,-302.236384,0.00013559,2]
[420523565,1776238239950,-256.916604,0.00013559,2]
[420523566,1776238239960,-164.31301849,0.00013569,2]
[420523567,1776238239969,-151.0,0.00013578,2]
[420523568,1776238239979,-159.58,0.0001359,2]
[420523569,1776238239988,-1600.0,0.00013603,2]
[420523570,1776238239998,-200.0,0.00013606,2]
[420523571,1776238240007,-500.0,0.0001365,2]
[420523572,1776238240016,-501.81765176,0.0001365,2]
[420523573,1776238240025,-414.03283671,0.00013655,2]
[420523574,1776238240036,-49239.02759518,0.00013669,2]
[420523575,1776238240046,-1114.528901,0.00013669,2]
[420523576,1776238240055,-1114.528901,0.00013669,2]
[420523577,1776238240064,-1114.528901,0.00013669,2]
[420523578,1776238240073,-1114.528901,0.00013669,2]
[420523579,1776238240084,-151.0,0.00013669,2]
[420523580,1776238240093,-1113.936725,0.00013669,2]
[420523581,1776238240102,-1113.936725,0.00013669,2]
[420523582,1776238240112,-1113.936725,0.00013669,2]
[420523592,1776238240533,-1113.936725,0.00013669,2]
[420523593,1776238240546,-500.0,0.00013673,2]
[420523594,1776238240558,-356.35634581,0.00013673,2]
[420523595,1776238240568,-500.0,0.00013673,2]
[420523596,1776238240580,-500.0,0.00013673,2]
[420523597,1776238240591,-500.0,0.00013673,2]
[420523598,1776238240602,-500.0,0.00013673,2]
[420523599,1776238240612,-500.0,0.00013673,2]
[420523600,1776238240626,-500.0,0.00013673,2]
[420523602,1776238240636,-305.2075751,0.00013673,2]
[420523604,1776238240650,-500.0,0.00013673,2]
[420523606,1776238240664,-500.0,0.00013673,2]
[420523607,1776238240675,-500.0,0.00013673,2]
[420523608,1776238240686,-500.0,0.00013678,4]
[420523609,1776238240698,-500.0,0.00013678,4]
[420523610,1776238240714,-3302.0,0.00013678,4]
[420523611,1776238240724,-500.0,0.00013678,4]
[420523612,1776238240736,-500.0,0.00013678,4]
[420523613,1776238240746,-619.23128294,0.00013678,4]
[420523614,1776238240762,-205.71895427,0.00013678,4]
[420523615,1776238240772,-150.0,0.00013678,4]
[420523616,1776238240785,-151.0,0.00013692,2]
[420523617,1776238240801,-500.0,0.00013698,2]
[420523618,1776238240812,-500.0,0.00013698,2]
[420523619,1776238240822,-500.0,0.00013698,2]
[420523620,1776238240835,-507.95013539,0.00013698,2]
[420523621,1776238240851,-500.0,0.00013698,2]
[420523622,1776238240862,-500.0,0.00013698,2]
[420523623,1776238240873,-500.0,0.00013698,2]
[420523624,1776238240915,-450.64269932,0.00013698,2]
[420523625,1776238240944,-500.0,0.00013698,2]
[420523626,1776238240967,-500.0,0.00013698,2]
[420523628,1776238240980,-500.0,0.00013698,2]
[420523629,1776238240998,-500.0,0.00013698,2]
[420523630,1776238241013,-510.89202639,0.00013698,2]
[420523631,1776238241027,-500.0,0.00013698,2]
[420523632,1776238241050,-500.0,0.00013698,2]
[420523633,1776238241061,-500.0,0.00013698,2]
[420523634,1776238241083,-500.0,0.00013698,2]
[420523635,1776238241100,-502.02550008,0.00013698,2]
[420523636,1776238241115,-180.0,0.00013699,2]
[420523637,1776238241131,-166.66,0.00013699,2]
[420523638,1776238241146,-632.66,0.00013699,2]
[420523639,1776238241160,-200.0,0.00013699,2]
[420523641,1776238241178,-151.0,0.00013699,2]
[420523643,1776238241196,-151.0,0.00013699,2]
[420523645,1776238241209,-220.551923,0.00013699,2]
[420523646,1776238241229,-220.551923,0.00013699,2]
[420523647,1776238241241,-220.551923,0.00013699,2]
[420523648,1776238241253,-220.551923,0.00013699,2]
[420523649,1776238241273,-151.0,0.00013699,2]
[420523650,1776238241286,-258.291499,0.00013699,2]
[420523651,1776238241296,-1439.0,0.00013699,2]
[420523652,1776238241315,-216.98,0.00013699,2]
[420523653,1776238241326,-151.0,0.00013699,2]
[420523654,1776238241338,-151.0,0.00013699,2]
[420523655,1776238241353,-500.0,0.00013699,2]
[420523656,1776238241370,-500.0,0.00013699,2]
[420523657,1776238241381,-500.0,0.00013699,2]
[420523658,1776238241394,-500.0,0.00013699,2]
[420523659,1776238241409,-500.0,0.00013699,2]
[420523660,1776238241420,-500.0,0.00013699,2]
[420523661,1776238241430,-500.0,0.00013699,2]
[420523662,1776238241445,-500.0,0.00013699,2]
[420523663,1776238241459,-500.0,0.00013699,2]
[420523664,1776238241469,-500.0,0.00013699,2]
[420523665,1776238241483,-500.0,0.00013699,2]
[420523666,1776238241494,-500.0,0.00013699,2]
[420523667,1776238241505,-500.0,0.00013699,2]
[420523668,1776238241515,-500.0,0.00013699,2]
[420523669,1776238241529,-500.0,0.00013699,2]
[420523670,1776238241541,-500.0,0.00013699,2]
[420523671,1776238241552,-500.0,0.00013699,2]
[420523672,1776238241562,-500.0,0.00013699,2]
[420523673,1776238241578,-500.0,0.00013699,2]
[420523674,1776238241591,-500.0,0.00013699,2]
[420523675,1776238241602,-500.0,0.00013699,2]
[420523676,1776238241615,-500.0,0.00013699,2]
[420523677,1776238241625,-500.0,0.00013699,2]
[420523678,1776238241636,-500.0,0.00013699,2]
[420523679,1776238241646,-500.0,0.00013699,2]
[420523680,1776238241659,-500.0,0.00013699,2]
[420523681,1776238241669,-500.0,0.00013699,2]
[420523682,1776238241681,-500.0,0.00013699,2]
[420523683,1776238241694,-500.0,0.00013699,2]
[420523684,1776238241714,-500.0,0.00013699,2]
[420523685,1776238241733,-500.0,0.00013699,2]
[420523686,1776238241752,-500.0,0.00013699,2]
[420523687,1776238241773,-500.0,0.00013699,2]
[420523688,1776238241798,-500.0,0.00013699,2]
[420523689,1776238241857,-500.0,0.00013699,2]
[420523690,1776238241902,-500.0,0.00013699,2]
[420523691,1776238241965,-500.0,0.00013699,2]
[420523692,1776238242085,-500.0,0.00013699,2]
[420523693,1776238242159,-500.0,0.00013699,2]
[420523694,1776238242212,-500.0,0.00013699,2]
[420523695,1776238242266,-500.0,0.00013699,2]
[420523696,1776238242302,-500.0,0.00013699,2]
[420523697,1776238242345,-500.0,0.00013699,2]
[420523698,1776238242385,-500.0,0.00013699,2]
[420523699,1776238242435,-500.0,0.00013699,2]
[420523701,1776238242463,-500.0,0.00013699,2]
[420523702,1776238242487,-500.0,0.00013699,2]
[420523703,1776238242506,-500.0,0.00013699,2]
[420523704,1776238242529,-500.0,0.00013699,2]
[420523705,1776238242546,-500.0,0.00013699,2]
[420523706,1776238242559,-500.0,0.00013699,2]
[420523707,1776238242587,-343.49065351,0.00013699,2]
[420523708,1776238242603,-500.0,0.00013699,2]
[420523709,1776238242632,-500.0,0.00013699,2]
[420523710,1776238242644,-500.0,0.00013699,2]
[420523711,1776238242674,-500.0,0.00013699,2]
[420523712,1776238242688,-500.0,0.00013699,2]
[420523713,1776238242706,-500.0,0.00013699,2]
[420523714,1776238242724,-500.0,0.00013699,2]
[420523715,1776238242743,-500.0,0.00013699,2]
[420523716,1776238242756,-500.0,0.00013699,2]
[420523717,1776238242770,-500.0,0.00013699,2]
[420523718,1776238242792,-350.0,0.00013699,2]
[420523719,1776238242810,-500.0,0.00013699,2]
[420523720,1776238242821,-150.153,0.00013721,2]
[420523721,1776238242837,-1220.348,0.00013721,2]
[420523722,1776238242861,-926.0,0.00013721,2]
[420523723,1776238242872,-1348.0,0.00013721,2]
[420523724,1776238242885,-3535.003,0.00013721,2]
[420523725,1776238242907,-151.0,0.00013721,2]
[420523726,1776238242919,-151.0,0.00013721,2]
[420523727,1776238242937,-151.0,0.00013721,2]
[420523728,1776238242954,-151.742625,0.00013721,2]
[420523729,1776238242969,-151.0,0.00013721,2]
[420523730,1776238242995,-500.0,0.00013726,2]
[420523731,1776238243007,-1000.0,0.00013736,2]
[420523732,1776238243022,-500.0,0.00013743,6]
[420523733,1776238243041,-1352.93831,0.00013753,2]
[420523734,1776238243053,-150.0,0.00013759,2]
[420523735,1776238243069,-166.52,0.00013786,2]
[420523736,1776238243088,-150.0,0.00013792,2]
[420523737,1776238243098,-151.0,0.00013792,2]
[420523738,1776238243113,-150.0,0.00013792,2]
[420523739,1776238243132,-150.0,0.00013792,2]
[420523740,1776238243146,-150.219,0.00013792,2]
[420523741,1776238243159,-150.195,0.00013792,2]
[420523742,1776238243177,-191.0341,0.000138,2]
[420523743,1776238243187,-155.0,0.00013803,2]
[420523744,1776238243202,-1000.0,0.00013824,2]
[420523745,1776238243222,-166.66,0.00013836,2]
[420523746,1776238243232,-1113.936725,0.00013836,2]
[420523747,1776238243251,-1113.936725,0.00013836,2]
[420523748,1776238243263,-1113.936725,0.00013836,2]
[420523749,1776238243272,-1113.936725,0.00013836,2]
[420523750,1776238243287,-160.0,0.00013871,2]
[420523751,1776238243299,-706.0,0.00013878,5]
[420523752,1776238243313,-1000.0,0.00013878,2]
[420523753,1776238243326,-242.0804071,0.00013925,2]
[420523754,1776238243341,-329.04456279,0.00013925,2]
[420523755,1776238243352,-156.587,0.00013925,2]
[420523756,1776238243361,-834.86527717,0.00013925,2]
[420523757,1776238243375,-181.08010149,0.00013925,2]
[420523758,1776238243385,-719.04747942,0.00013925,2]
[420523759,1776238243393,-540.07890174,0.00013951,2]
[420523760,1776238243402,-168.29588463,0.00013951,2]
[420523761,1776238243410,-607.4772035,0.00013951,2]
[420523762,1776238243427,-3302.0,0.00013952,4]
[420523763,1776238243437,-1352.93831,0.00013953,2]
[420523764,1776238243447,-156.0,0.00013962,3]
[420523765,1776238243458,-166.66,0.00013973,2]
[420523766,1776238243468,-328.26778784,0.00013984,2]
[420523767,1776238243478,-150.0,0.00013984,2]
[420523768,1776238243488,-164.63179912,0.00013984,2]
[420523769,1776238243500,-500.0,0.00014,2]
[420523770,1776238243510,-200.939198,0.00014,2]
[420523771,1776238243519,-152.0,0.00014007,3]
[420523772,1776238243529,-168.0,0.00014014,2]
[420523773,1776238243541,-1000.0,0.00014031,2]
[420523774,1776238243558,-168.0,0.00014034,2]
[420523775,1776238243571,-168.0,0.00014066,2]
[420523776,1776238243586,-152.0,0.0001408,4]
[420523777,1776238243598,-1114.528901,0.00014094,2]
[420523778,1776238243615,-1114.528901,0.00014094,2]
[420523779,1776238243630,-1114.528901,0.00014094,2]
[420523780,1776238243640,-1114.528901,0.00014094,2]
[420523782,1776238243655,-151.0,0.00014094,2]
[420523783,1776238243667,-166.66,0.0001411,2]
[420523785,1776238243678,-307.0,0.00014118,5]
[420523786,1776238243687,-150.0,0.00014133,2]
[420523787,1776238243700,-1000.0,0.00014143,2]
[420523788,1776238243719,-152.0,0.00014153,5]
[420523789,1776238243729,-1352.93832,0.00014153,2]
[420523790,1776238243745,-200.0,0.00014154,2]
[420523791,1776238243768,-500.0,0.00014166,2]
[420523792,1776238243785,-1000.0,0.00014198,2]
[420523793,1776238243800,-1000.0,0.00014198,2]
[420523794,1776238243809,-151.0,0.00014198,2]
[420523795,1776238243836,-151.0,0.00014198,2]
[420523796,1776238243847,-440.0,0.00014199,5]
[420523797,1776238243860,-168.0,0.00014204,2]
[420523798,1776238243873,-1002.05801708,0.00014221,2]
[420523799,1776238243886,-1001.97819471,0.00014221,2]
[420523800,1776238243900,-1000.0,0.00014221,2]
[420523801,1776238243910,-1000.0,0.00014221,2]
[420523802,1776238243928,-1000.0,0.00014221,2]
[420523803,1776238243942,-377.32033999,0.00014221,2]
[420523804,1776238243952,-1000.0,0.00014221,2]
[420523805,1776238243965,-171.05114549,0.00014221,2]
[420523806,1776238243976,-1000.0,0.00014221,2]
[420523807,1776238243992,-1000.0,0.00014221,2]
[420523808,1776238244006,-151.0,0.00014221,2]
[420523809,1776238244017,-220.551923,0.00014221,2]
[420523810,1776238244033,-220.551923,0.00014221,2]
[420523811,1776238244047,-220.551923,0.00014221,2]
[420523812,1776238244058,-220.551923,0.00014221,2]
[420523813,1776238244075,-152.0,0.00014225,6]
[420523814,1776238244091,-3302.0,0.00014226,4]
[420523815,1776238244101,-174.717309,0.0001423,7]
[420523816,1776238244129,-211.869421,0.00014237,2]
[420523817,1776238244139,-1135.151509,0.00014237,7]
[420523818,1776238244160,-324.357658,0.00014237,7]
[420523819,1776238244183,-166.66,0.00014247,2]
[420523820,1776238244195,-1335.32,0.00014247,2]
[420523821,1776238244216,-1439.0,0.00014247,2]
[420523822,1776238244229,-202.19,0.00014252,2]
[420523823,1776238244244,-352.75492284,0.00014254,2]
[420523824,1776238244265,-500.0,0.00014274,2]
[420523825,1776238244276,-166.52,0.00014292,2]
[420523826,1776238244301,-152.0,0.00014298,7]
[420523827,1776238244318,-500.0,0.00014301,2]
[420523828,1776238244347,-2000.0,0.00014337,2]
[420523829,1776238244363,-501.28102045,0.00014339,2]
[420523830,1776238244387,-1581.0,0.0001434,2]
[420523831,1776238244404,-2815.0,0.0001434,2]
[420523832,1776238244418,-2815.0,0.0001434,2]
[420523833,1776238244435,-2815.0,0.0001434,2]
[420523834,1776238244447,-462.0,0.0001434,2]
[420523835,1776238244460,-500.0,0.00014351,2]
[420523836,1776238244478,-1113.936725,0.00014352,2]
[420523837,1776238244491,-1113.936725,0.00014352,2]
[420523838,1776238244504,-1113.936725,0.00014352,2]
[420523839,1776238244522,-1113.936725,0.00014352,2]
[420523840,1776238244535,-1352.93831,0.00014353,2]
[420523841,1776238244548,-1000.0,0.00014355,2]
[420523842,1776238244566,-937.0,0.00014359,2]
[420523843,1776238244578,-152.0,0.00014371,8]
[420523844,1776238244592,-150.94,0.00014379,2]
[420523845,1776238244607,-166.66,0.00014384,2]
[420523846,1776238244618,-632.66,0.00014384,2]
[420523847,1776238244633,-1000.0,0.00014386,2]
[420523848,1776238244646,-151.0,0.00014425,2]
[420523849,1776238244663,-150.0,0.00014436,2]
[420523850,1776238244676,-150.0,0.00014436,2]
[420523851,1776238244687,-168.0,0.00014438,2]
[420523852,1776238244702,-152.0,0.00014444,9]
[420523853,1776238244713,-153.56474935,0.00014444,2]
[420523854,1776238244723,-500.0,0.0001445,2]
[420523855,1776238244734,-1000.0,0.00014451,2]
[420523856,1776238244748,-168.0,0.00014469,2]
[420523857,1776238244759,-162.380719,0.00014473,2]
[420523858,1776238244770,-187.78006525,0.00014473,2]
[420523859,1776238244781,-204.46896163,0.00014473,2]
[420523860,1776238244792,-186.33934496,0.00014483,2]
[420523861,1776238244803,-168.6,0.00014489,2]
[420523862,1776238244814,-3302.0,0.000145,4]
[420523863,1776238244825,-211.06631439,0.000145,4]
[420523864,1776238244836,-1435.61226994,0.000145,4]
[420523865,1776238244854,-861.36736196,0.000145,4]
[420523866,1776238244864,-574.24490798,0.000145,4]
[420523867,1776238244878,-717.80613497,0.000145,4]
[420523868,1776238244889,-430.68368098,0.000145,4]
[420523869,1776238244903,-287.12245399,0.000145,4]
[420523870,1776238244913,-358.90306749,0.000145,4]
[420523871,1776238244928,-358.90306749,0.000145,4]
[420523872,1776238244941,-358.90306748,0.000145,4]
[420523873,1776238244952,-179.45153374,0.000145,4]
[420523874,1776238244963,-12774.93,0.00014504,2]
[420523875,1776238244980,-152.0,0.00014517,10]
[420523876,1776238244990,-1439.0,0.00014521,2]
[420523877,1776238245002,-1114.528901,0.00014521,2]
[420523878,1776238245017,-1114.528901,0.00014521,2]
[420523879,1776238245031,-1114.528901,0.00014521,2]
[420523880,1776238245042,-1114.528901,0.00014521,2]
[420523881,1776238245061,-151.0,0.00014521,2]
[420523882,1776238245077,-151.0,0.00014521,2]
[420523883,1776238245093,-150.0,0.00014529,2]
[420523884,1776238245106,-151.218458,0.00014535,2]
[420523885,1776238245127,-474.19721144,0.00014548,2]
[420523886,1776238245170,-1352.93832,0.00014553,2]
[420523887,1776238245209,-663.62020619,0.00014574,2]
[420523888,1776238245222,-150.92,0.00014576,2]
[420523889,1776238245243,-429.02460411,0.00014579,2]
[420523890,1776238245265,-1700.0,0.00014582,2]
[420523892,1776238245303,-800.0,0.00014582,2]
[420523893,1776238245349,-1000.0,0.00014583,2]
[420523894,1776238245400,-152.0,0.0001459,11]
[420523895,1776238245437,-150.94,0.00014613,2]
[420523896,1776238245477,-2133.925,0.00014628,2]
[420523897,1776238245505,-174.903,0.00014628,2]
[420523898,1776238245532,-297.64128,0.00014628,2]
[420523899,1776238245561,-500.0,0.00014659,2]
[420523900,1776238245587,-500.0,0.00014659,2]
[420523901,1776238245607,-500.0,0.00014659,2]
[420523902,1776238245636,-500.0,0.00014659,2]
[420523903,1776238245655,-500.0,0.00014659,2]
[420523904,1776238245675,-500.0,0.00014659,2]
[420523906,1776238245696,-1575.0,0.0001466,2]
[420523908,1776238245706,-2815.0,0.0001466,2]
[420523909,1776238245719,-2815.0,0.0001466,2]
[420523910,1776238245742,-2815.0,0.0001466,2]
[420523911,1776238245753,-151.0,0.0001466,2]
[420523912,1776238245779,-151.0,0.0001466,2]
[420523913,1776238245789,-1113.936725,0.0001466,2]
[420523914,1776238245799,-1113.936725,0.0001466,2]
[420523915,1776238245824,-1113.936725,0.0001466,2]
[420523916,1776238245835,-1113.936725,0.0001466,2]
[420523917,1776238245846,-152.0,0.00014662,12]
[420523918,1776238245870,-1000.0,0.00014667,2]
[420523919,1776238245885,-1000.0,0.00014684,2]
[420523920,1776238245896,-156.0,0.00014692,3]
[420523921,1776238245915,-150.0,0.00014701,2]
[420523922,1776238245925,-152.0,0.00014735,13]
[420523923,1776238245937,-501.74123223,0.00014746,2]